Workbook

Sheet Cover sheet
B8: Course on Nonperforming Loan Resolution | I8: NPL Resolution Case Study #2
B9: 2021-11-26
B11: Instructor | D11: Karlis Bauze
D12: Senior Financial Sector Specialist
I14: Please enable macros to operate this spreadsheet.

Sheet Main sheet
B2: Background
E3: Please read the background information in this section, then proceed to "Viability assessment" below.
C5: Loan to be resolved
C7: Value in thousands of local currency | E7: NPV | F7: 31.12.16 | G7: 31.12.17 | H7: 31.12.18 | I7: 31.12.19 | J7: 31.12.20 | K7: 31.12.21
F8: t = 0 | G8: t + 1 | H8: t + 2 | I8: t + 3 | J8: t + 4 | K8: t + 5
C9: Principal outstanding | E9: =NPV($F$14,G9:K9)+F9 -> 6800000 | F9: 6800000
C10: Interest outstanding | E10: =NPV($F$14,G10:K10)+F10 -> 33592 | F10: 33592
C12: Parameters
A13: 1
A14: 2 | C14: Interest rate over time | F14: 0.12 | H14: Years to enforce collateral (insolvency) | K14: 4
A15: 3 | C15: Years to enforce collateral | F15: 3 | H15: Years to receive liquidation proceeds | K15: 5
A16: 4
F17: 31.12.16 | G17: 31.12.17 | H17: 31.12.18 | I17: 31.12.19 | J17: 31.12.20 | K17: 31.12.21
F18: t = 0 | G18: t + 1 | H18: t + 2 | I18: t + 3 | J18: t + 4 | K18: t + 5
C19: Exchange rate: local currency to USD | F19: 27.19 | G19: 27.75 | H19: 28.31 | I19: 28.88 | J19: 29.44 | K19: 30
B21: Viability assessment | F21: Click on "Start" on the button to the left and determine:
F22: Is the company viable? | J22: =IF(ISBLANK('Viability assessment'!H3), " ", 'Viability assessment'!H3) -> No
B24: Workout options | F24: Once viability is assessed, click on the "Update" button to expand the workout options.
F25: Click on "Start" to explore details of individual options.
C28: Restructuring | E28: NPV | F28: 31.12.16 | G28: 31.12.17 | H28: 31.12.18 | I28: 31.12.19 | J28: 31.12.20 | K28: 31.12.21
F29: t = 0 | G29: t + 1 | H29: t + 2 | I29: t + 3 | J29: t + 4 | K29: t + 5
C30: Principal
C31: Interest
C32: Sum
C35: Sales to third party | E35: NPV | F35: 31.12.16 | G35: 31.12.17 | H35: 31.12.18 | I35: 31.12.19 | J35: 31.12.20 | K35: 31.12.21
F36: t = 0 | G36: t + 1 | H36: t + 2 | I36: t + 3 | J36: t + 4 | K36: t + 5
C37: Proposal 1
C38: Proposal 2
C41: Collateral enforcement | E41: NPV | F41: 31.12.16 | G41: 31.12.17 | H41: 31.12.18 | I41: 31.12.19 | J41: 31.12.20 | K41: 31.12.21
F42: t = 0 | G42: t + 1 | H42: t + 2 | I42: t + 3 | J42: t + 4 | K42: t + 5
C43: Recovery
C44: Expenses
C45: Sum
C48: Insolvency proceeding | E48: NPV | F48: 31.12.16 | G48: 31.12.17 | H48: 31.12.18 | I48: 31.12.19 | J48: 31.12.20 | K48: 31.12.21
F49: t = 0 | G49: t + 1 | H49: t + 2 | I49: t + 3 | J49: t + 4 | K49: t + 5
C50: Recovery
C51: Expenses
C52: Sum
A54: Restructuring | B54: Conclusion
A55: Sales to third party | E55: Edit as needed cell E15 and K14, and regenerate results to answer the following questions:
A57: Insolvency proceeding | C57: The best workout option, assuming collateral takes 3 years to enforce (4 yrs for insolvency), is:
C58: … assuming collateral takes 2 years to enforce (3 yrs in the example), is:
E60: What would be the reasons behind?

Sheet Viability assessment
A2: Yes | B2: Viability assessment | E2: Analyze material below, and click on the green cell's dropdown menu to determine:
A3: No | E3: Is the company viable? | H3: No
B5: Background | E5: Once done, click "Finish" to return.
B7: The company borrowed USD 250 million (approximately 6.8 billion in local currency) on a 7-year investment loan in 2012.
B8: The loan was priced at 12 per cent and secured by a mortgage on a land plot.
B9: It used for commercial real estate but the property's occupancy remained below target level.
B10: An related, ongoing construction project was also stalled because of a funding deficit.
B12: The company made net losses in the run-up to 2015 and was placed on the bank's watchlist.
B13: It defaulted on an October 2016 interest payment, and was past due for 2015 taxes.
B15: Financial statement
E17: 2014 | F17: 2015 | G17: 2016 (E)
B18: Sales | E18: 309299 | F18: 459179 | G18: 520213
B19: EBITDA | E19: 304768 | F19: 486241 | G19: 531284
B20: EBIT | E20: 269044 | F20: 429914 | G20: 452708
B21: Net earnings | E21: -1643267 | F21: -2438889 | G21: -1078360
B22: Key financial ratios (in percentages) | J22: Reference benchmarks* | M22: Good | N22: Moderate | O22: Bad
B23: Compound annual growth rate of revenue | E23: =(G23-F23)/2 -> -17.58299023 | F23: =(F18/E18-1) * 100 -> 48.45796462 | G23: =(G18/F18-1) * 100 -> 13.29198417 | J23: Compound annual growth rate of revenue | M23: > 5% | N23: -5% to 5% | O23: < -5%
B24: Net debt / EBITDA | E24: 9.3 | F24: 12.4 | G24: 12.9 | J24: Net debt / EBITDA ratio | M24: < 1 | N24: 1 to 5 | O24: > 5
B25: Debt service coverage ratio | E25: 1 | F25: 0.8 | G25: 0.6 | J25: Debt service coverage ratio | M25: > 1.5 | N25: 1 to 1.5 | O25: < 1
J26: *: Values adapted from three studies by Deloitte, KPMG, and PwC in Balkan countries.
B27: Additional Information
B29: The company's manager was reluctantly cooperative with the bank, and was lacking in financial knowledge.
B30: The real estate market showed signs of oversupply, and points to a low probability of the company renting out excess space.
B32: Indicate your assessment on the firm's viability in the green cell at the top of the page, then click on "Finish" to return to the main page.

Sheet Restructuring
B2: Restructuring | E2: Review the description below on the restructuring process.
E3: Once done, click on the "Finish" button to return to main page.
C5: Considering the difficulty the firm experienced, a significant discount needed to be implemented, necessitated by the firm's cash flow.
C6: The proposed option involves heavily reducing the principal amount from 6.8 to 1.6 million, and forgiving the rest of the loan.
C22: Restructuring | E22: 31.12.16 | F22: 31.12.17 | G22: 31.12.18 | H22: 31.12.19 | I22: 31.12.20 | J22: 31.12.21
E23: t = 0 | F23: t + 1 | G23: t + 2 | H23: t + 3 | I23: t + 4 | J23: t + 5
C24: "A" note
C25: Principal | E25: 0 | F25: 206035.5 | G25: 262813.5 | H25: 321698.5 | I25: 382690.5 | J25: 445789.25
C26: Interest | E26: 0 | F26: 115465 | G26: 99093.25 | H26: 77719.75 | I26: 51092 | J26: 18958.25
C27: "B" note
C28: Principal (conditional) | E28: 0 | F28: 0 | G28: 0 | H28: 0 | I28: 0 | J28: =135000*27.2 -> 3672000
B30: Now, click on "Finish" at top of the spreadsheet to return to the main page.

Sheet Sales to third party
B2: Sales to third party
E3: Consider the scenario below, then return to the main page:
B5: Background
B7: Two asset management companies offered to purchase the loan:
C9: Offers | E9: 31.12.16 | F9: 31.12.17 | G9: 31.12.18 | H9: 31.12.19 | I9: 31.12.20 | J9: 31.12.21
E10: t = 0 | F10: t + 1 | G10: t + 2 | H10: t + 3 | I10: t + 4 | J10: t + 5
C11: Proposal 1 | E11: 2050000 | F11: 0 | G11: 0 | H11: 0 | I11: 0 | J11: 0
C12: Proposal 2 | E12: 2100000 | F12: 0 | G12: 0 | H12: 0 | I12: 0 | J12: 0

Sheet Collateral enforcement
B2: Collateral enforcement
E3: Consider the information below, then return to the main page:
C5: Collateral values
C7: The collaterals have been reappraised. They will be liquidated for values below if enforced:
E9: Appraisal values | G9: Sales value at enforcement
E10: Original | F10: Updated | G10: Thousands | H10: % of appraisal value
C11: Land plot | E11: 200000 | F11: 1500000 | G11: =F11*H11 -> 900000 | H11: 0.6
C12: Building | E12: 2500000 | F12: 4500000 | G12: =F12*H12 -> 3150000 | H12: 0.7
C13: Total | E13: =SUM(E11:E12) -> 2700000 | F13: =SUM(F11:F12) -> 6000000 | G13: =SUM(G11:G12) -> 4050000
C17: The proceeds are expected to be received in: | G17: ='Main sheet'!F15 -> 3 | H17: years.
C19: Collateral enforcement costs
C21: Additional costs are to be involved in enforcing the collaterals, over a span of 3 years.
E23: Amount
C24: Court fees (two levels) | E24: 189000 | F24: 3.2 | G24: % of claim or limit of 504,000
C25: Bailiff initiation fee | E25: 32000 | F25: 2 | G25: % of claim or limit of 32,000
C26: Bailiff service fee | E26: 405000 | F26: 10 | G26: % of forced sale value
C27: Auction platform fee | E27: 81000 | F27: 2 | G27: % of forced sale value
C28: Other selling costs | E28: 40500 | F28: 1 | G28: % of forced sale value
C29: Total | E29: =SUM(E24:E28) -> 747500
C31: The distribution of expenses is indicated as expected below:
C33: Expected outcome
C35: Collateral enforcement | E35: 31.12.16 | F35: 31.12.17 | G35: 31.12.18 | H35: 31.12.19 | I35: 31.12.20 | J35: 31.12.21 | K35: Total
E36: t = 0 | F36: t + 1 | G36: t + 2 | H36: t + 3 | I36: t + 4 | J36: t + 5
C37: Recovery | E37: 0 | F37: 0 | G37: 0 | H37: =G13 -> 4050000 | I37: 0 | J37: 0 | K37: =SUM(F37:J37) -> 4050000
C38: Expenses | E38: -90000 | F38: -119250 | G38: -52250 | H38: -486000 | I38: 0 | J38: 0 | K38: =E29 -> 747500
C40: For additional background on collateral enforcement, refer to cross-country information at:
C41: http://www.doingbusiness.org/en/data/exploretopics/enforcing-contracts
B43: Now, click on "Finish" at top of the spreadsheet to return to the main page.

Sheet Insolvency proceeding
B2: Insolvency proceeding
D3: Consider the information below, then return to the main page:
C5: Collateral values
C7: The collaterals have been reappraised. They will be liquidated for less under insolvency:
E9: Appraisal values | G9: Sales value at enforcement
E10: Original | F10: Updated | G10: Thousands | H10: % of appraisal value
C11: Land plot | E11: 200000 | F11: 1500000 | G11: =F11*H11 -> 600000 | H11: 0.4
C12: Building | E12: 2500000 | F12: 4500000 | G12: =F12*H12 -> 2250000 | H12: 0.5
C13: Total | E13: =SUM(E11:E12) -> 2700000 | F13: =SUM(F11:F12) -> 6000000 | G13: =SUM(G11:G12) -> 2850000
C17: Proceeds from collateral sales are to be received in: | G17: ='Main sheet'!K14 -> 4 | H17: years.
C19: Liquidation values of assets
C21: Balance sheet item | E21: Book value | F21: Estimated recovery rate | G21: Liquidation value
C22: Cash | E22: 0 | F22: 1 | G22: =E22*F22 -> 0
C23: Accounts receivable
C24: 0-30 days outstanding | E24: 178922 | F24: 0.6 | G24: =E24*F24 -> 107353.2
C25: 31-60 days outstanding | E25: 119282 | F25: 0.3 | G25: =E25*F25 -> 35784.6
C26: Over 60 days outstanding | E26: 298204 | F26: 0.1 | G26: 29820.4
C27: Total accounts receivable | E27: =SUM(E24:E26) -> 596408 | G27: =SUM(G24:G26) -> 172958.2
C28: Inventory
C29: Finished goods | E29: 132547 | F29: 0.7 | G29: =E29*F29 -> 92782.9
C30: Work in progress | E30: 265094 | F30: 0 | G30: 0
C31: Raw materials | E31: 265094 | F31: 0.5 | G31: 132547
C32: Total inventory | E32: =SUM(E29:E31) -> 662735 | G32: =SUM(G29:G31) -> 225329.9
C33: Other current assets
C34: Prepaid expenses | E34: 5199 | F34: 0.5 | G34: =E34*F34 -> 2599.5
C35: Financial investments | E35: 0 | F35: 0.3 | G35: 0
C36: Promissory notes | E36: 0 | F36: 0.3 | G36: 0
C37: Total other current assets | E37: =SUM(E34:E36) -> 5199 | G37: =SUM(G34:G36) -> 2599.5
C38: Total assets | E38: =SUM(E27,E32,E37) -> 1264342 | G38: =SUM(G27,G32,G37) -> 400887.6
C39: Portion of recovery by the bank | F39: 0.77 | G39: =G38*F39 -> 308683.452
C47: Proceeds from asset liquidation are to be received in: | G47: ='Main sheet'!K15 -> 5 | H47: years.
C49: Insolvency proceeding costs
E51: Amount | F51: Explanation
C52: Court fees (two levels) | E52: 308344 | F52: 3.2 | G52: % of claim or limit of 504,000
C53: Insolvency case opening | E53: 16000 | F53: 10 | G53: times minimal living expenses
C54: Statement of claims | E54: 6400 | F54: 4 | G54: times minimal living expenses
C55: Bailiff initiation fee | E55: 32000 | F55: 2 | G55: % of claim or limit of 32,000
C56: Arbitrage manager pay | E56: 29452 | F56: 2 | G56: times minimal wage for 6 months
C57: Liquidator pay | E57: 206165 | F57: 2 | G57: times minimal wage for 42 months
C58: Sale organizer fee | E58: 94664 | F58: 3 | G58: % of forced sale value
C59: Extra pay to liquidator / manager | E59: 79996 | F59: 3 | G59: % of net recovery value
C60: Other selling costs | E60: 31555 | F60: 1 | G60: % of forced sale value
C61: Total | E61: =SUM(E52:E60) -> 804576
C63: The distribution of expenses over time is indicated as expected over a period of 5 years as below:
C65: Expected outcome
C67: Insolvency proceeding | E67: 31.12.16 | F67: 31.12.17 | G67: 31.12.18 | H67: 31.12.19 | I67: 31.12.20 | J67: 31.12.21 | K67: Total
E68: t = 0 | F68: t + 1 | G68: t + 2 | H68: t + 3 | I68: t + 4 | J68: t + 5
C69: Recovery | E69: 0 | F69: 0 | G69: 0 | H69: 0 | I69: =G13 -> 2850000 | J69: =G39 -> 308683.452 | K69: =SUM(F69:J69) -> 3158683.452
C70: Expenses | E70: -146831 | F70: -215914 | G70: -68404 | H70: -69423 | I70: -227641 | J70: -76376 | K70: =E61 -> 804576
C72: http://www.doingbusiness.org/en/data/exploretopics/resolving-insolvency
B74: Now, click on "Finish" at top of the spreadsheet to return to the main page.
